bitfinex/quotes_ETHUSD_20241104
["timestamp","ask_amount","ask_price","bid_price","bid_amount"]
[1730745992659,4.11369,2431.0,2430.7,0.13841445]
[1730745992868,0.11163336,2430.9,2430.8,0.13841445]
[1730745993588,0.11163336,2430.9,2430.8,0.13846685]
[1730745995219,0.11163336,2430.9,2430.8,0.36023673]
[1730745995534,0.11163336,2430.9,2430.8,0.13846685]
[1730745995684,0.90783336,2430.9,2430.8,0.13846685]
[1730745995891,5.02153336,2430.9,2430.8,0.13846685]
[1730745996289,0.90783336,2430.9,2430.8,0.13846685]
[1730745996892,5.02153336,2430.9,2430.6,0.7926]
[1730745997099,0.90783336,2430.9,2430.7,0.36029086]
[1730745997277,0.11163336,2430.9,2430.8,0.36029086]
[1730745997621,0.11163336,2430.9,2430.8,0.3602658]
[1730745997825,4.11355,2431.0,2430.8,0.3602658]
[1730745998119,4.11355,2431.0,2430.9,0.13856469]
[1730745998690,4.11371,2430.9,2430.6,0.7926]
[1730745998985,4.86628,2430.8,2430.4,0.7861]
[1730745999523,4.86628,2430.8,2430.5,0.22172796]
[1730745999743,4.11344,2431.1,2430.5,0.36028947]
[1730746000012,4.11344,2431.1,2430.5,0.22172796]
[1730746000217,4.11344,2431.1,2430.6,0.7584]
[1730746001116,4.11354,2431.0,2430.7,0.36013123]
[1730746001816,4.11354,2431.0,2430.8,0.13851707]
[1730746002118,4.11354,2431.0,2430.7,0.22165183]
[1730746002327,4.1137,2430.9,2430.8,0.13851811]
[1730746003135,4.8985,2430.9,2430.5,0.22164398]
[1730746003441,4.8985,2430.9,2430.6,0.36018174]
[1730746003609,4.8985,2430.9,2430.7,0.13851317]
[1730746003794,4.8985,2430.9,2430.5,0.22165335]
[1730746004145,0.7848,2430.9,2430.6,0.13851236]
[1730746004308,0.7848,2430.9,2430.7,0.13851236]
[1730746004504,4.89851,2430.9,2430.6,0.22165839]
[1730746004692,0.11185088,2430.8,2430.7,0.13852329]
[1730746006233,4.22572088,2430.8,2430.7,0.13852329]
[1730746006538,0.11185088,2430.8,2430.7,0.13852329]
[1730746007735,4.22572088,2430.8,2430.5,0.22165335]
[1730746008038,4.22572088,2430.8,2430.6,0.13850272]
[1730746008212,4.22572088,2430.8,2430.7,0.13850272]
[1730746008595,0.11185088,2430.8,2430.7,0.13850272]
[1730746011204,0.11185088,2430.8,2430.7,0.13850739]
[1730746011620,4.22572088,2430.8,2430.7,0.13850739]
[1730746012242,5.13815097,2430.8,2430.7,0.13850739]
[1730746014879,4.11406,2430.7,2430.2,1.87764157]
[1730746015149,4.11406,2430.7,2430.3,0.36027468]
[1730746015371,0.11186109,2430.6,2430.4,0.36027468]
[1730746015577,0.11186109,2430.6,2430.5,0.36027468]
[1730746015578,4.22616109,2430.6,2430.5,0.36027468]
[1730746015758,4.22616109,2430.6,2430.2,0.97304593]
[1730746015934,0.11186109,2430.6,2430.3,0.36041962]
[1730746016134,0.11186109,2430.6,2430.5,0.823]
[1730746016368,0.7902,2431.1,2430.5,5.29767962]
[1730746016573,0.11182271,2430.6,2430.5,4.93726]
[1730746016879,4.1132,2431.2,2430.7,0.823]
[1730746017059,4.1132,2431.2,2430.8,0.36040292]
[1730746017279,4.1132,2431.2,2430.9,0.36040292]
[1730746017583,0.11182271,2431.1,2431.0,0.13860514]
[1730746017759,4.22518271,2431.1,2431.0,0.13860514]
[1730746017979,5.13804098,2431.1,2431.0,0.13860514]
[1730746018192,5.92314098,2431.1,2431.0,0.13860514]
[1730746018754,5.92314098,2431.1,2430.4,5.94367158]
[1730746018950,5.01028271,2431.1,2430.5,1.07277643]
[1730746019190,5.01028271,2431.1,2430.7,0.8276]
[1730746019392,5.01028271,2431.1,2430.8,0.36046681]
[1730746019603,5.01028271,2431.1,2430.9,0.13862971]
[1730746019759,5.01028271,2431.1,2431.0,0.13862971]
[1730746022594,5.41198422,2431.1,2431.0,0.13862971]
[1730746022756,4.11391,2430.8,2430.5,0.22181757]
[1730746022978,0.11188926,2430.7,2430.6,0.36044344]
[1730746023180,4.11391,2430.8,2430.6,0.36044344]
[1730746023181,8.22786,2430.8,2430.6,0.36044344]
[1730746023496,8.22786,2430.8,2430.7,0.36044344]
[1730746023497,4.11391,2430.8,2430.7,0.36044344]
[1730746023970,4.11391,2430.8,2430.7,0.13862587]
[1730746024184,5.727271,2430.8,2430.7,0.13862587]
[1730746024388,5.727271,2430.8,2430.7,0.36038364]
[1730746024623,4.90451,2430.8,2430.7,0.13862587]
[1730746024825,4.1141,2430.7,2430.4,0.8321]
[1730746025043,4.1141,2430.7,2430.5,0.36034496]
[1730746025326,4.1141,2430.7,2430.6,0.36034496]
[1730746025888,5.015961,2430.7,2430.6,0.36034496]
[1730746026136,5.015961,2430.7,2430.6,0.13858281]
[1730746026322,4.11471,2430.3,2430.2,0.22184199]
[1730746026492,4.11471,2430.3,2430.2,0.3604555]
[1730746027819,4.11471,2430.3,2430.2,0.13861351]
[1730746028648,4.11471,2430.3,2429.8,0.824]
[1730746028804,4.11471,2430.3,2430.2,0.13846533]
[1730746029920,5.01308,2430.3,2430.2,0.13846533]
[1730746031106,4.11471,2430.3,2430.2,0.13846533]
[1730746032953,4.88041,2430.3,2430.2,0.13846533]
[1730746033512,4.88041,2430.3,2429.9,0.22142614]
[1730746033752,4.1151,2430.1,2430.0,0.13838185]
[1730746034603,4.22666683,2430.1,2430.0,0.13838185]
[1730746035650,4.22666683,2430.1,2430.0,0.13828334]
[1730746035958,4.11523,2430.0,2429.8,0.824]
[1730746036115,4.11539,2429.9,2429.7,0.22128284]
[1730746036311,4.11539,2429.9,2429.8,0.13827328]
[1730746037948,4.11539,2429.9,2429.6,0.7986]
[1730746038150,4.91993,2430.0,2429.7,0.13822311]
[1730746038456,8.23056,2430.0,2429.6,0.7986]
[1730746038760,4.11539,2429.9,2429.7,0.13793733]
[1730746038948,4.11539,2429.9,2429.6,0.7986]
[1730746039104,4.11584,2429.7,2429.3,0.7662]
[1730746039308,4.11584,2429.7,2429.4,0.35868007]
[1730746039507,4.11584,2429.7,2429.4,0.13795053]
[1730746039732,4.92413,2429.8,2429.5,0.13795053]
[1730746039935,9.03984,2429.8,2429.6,0.13795053]
[1730746040147,9.03981,2429.8,2429.3,0.98692954]
[1730746040355,4.92413,2429.8,2429.4,0.13789]
[1730746040506,4.92413,2429.8,2429.5,0.13789]
[1730746040713,4.92413,2429.8,2429.6,0.13789]
[1730746040947,4.11574,2429.7,2429.3,0.98692954]
[1730746041157,4.11574,2429.7,2429.4,0.13787475]
[1730746041331,4.11574,2429.7,2429.5,0.13787475]
[1730746041692,4.11491,2430.2,2429.7,0.7873]
[1730746041853,4.11512,2430.1,2429.8,0.13788696]
[1730746042179,4.11532,2430.0,2429.7,0.7873]
[1730746042387,4.11506,2430.1,2429.8,0.13781402]
[1730746042735,4.11492,2430.2,2429.7,0.7873]
[1730746042973,4.11507,2430.1,2429.8,0.13778142]
[1730746043280,4.11507,2430.1,2429.7,0.7873]
[1730746043582,4.11507,2430.1,2429.8,0.13778358]
[1730746043744,4.11507,2430.1,2429.7,0.7873]
[1730746043944,4.11507,2430.1,2429.8,0.13778066]
[1730746044149,4.11507,2430.1,2429.7,0.7873]
[1730746044347,4.11491,2430.2,2429.8,0.13777171]
[1730746044583,8.22925,2430.4,2429.9,0.95667806]
[1730746044742,4.11457,2430.4,2429.9,0.8189]
[1730746045272,4.11457,2430.4,2430.0,0.13778856]
[1730746045482,8.22925,2430.4,2430.0,0.13778856]
[1730746045634,8.22922,2430.4,2430.0,0.13778856]
[1730746045981,4.11457,2430.4,2430.0,0.13778856]
[1730746046182,4.11457,2430.4,2430.0,0.13779473]
[1730746046350,8.22921,2430.4,2430.0,0.13779473]
[1730746046559,4.11457,2430.4,2430.0,0.13779473]
[1730746046938,4.11481,2430.3,2430.0,0.13779473]
[1730746047165,4.11481,2430.3,2429.9,0.8189]
[1730746047367,4.11481,2430.3,2430.0,0.13783929]
[1730746047632,4.11481,2430.3,2429.9,0.8189]
[1730746048473,4.11492,2430.2,2430.0,0.1378692]
[1730746048685,4.11492,2430.2,2429.9,0.8189]
[1730746048887,4.11492,2430.2,2429.7,0.22050102]
[1730746048888,4.11532,2430.0,2429.7,0.8189]
[1730746049051,4.11532,2430.0,2429.8,0.13788103]
[1730746049266,4.11532,2430.0,2429.9,0.13793191]
[1730746049501,4.11532,2430.0,2429.7,0.8189]
[1730746049663,4.22670389,2430.0,2429.7,0.8189]
[1730746049999,4.22670389,2430.0,2429.0,5.41888674]
[1730746050000,4.11575,2429.7,2429.5,0.22073196]
[1730746050197,4.11575,2429.7,2429.6,0.13797182]
[1730746050547,4.22713389,2429.7,2429.6,0.13797182]
[1730746050748,4.22713389,2429.7,2429.1,4.93554]
[1730746050948,4.22713389,2429.7,2429.2,0.35872919]
[1730746051190,4.11591,2429.6,2429.3,0.35872919]
[1730746051354,4.11591,2429.6,2429.1,0.8189]
[1730746051355,4.11615,2429.5,2429.4,0.13796142]
[1730746051564,4.22745195,2429.5,2429.4,0.13796142]
[1730746053092,4.22745195,2429.5,2429.1,0.8189]
[1730746053245,4.22745195,2429.5,2429.2,0.35868668]
[1730746053449,4.22745195,2429.5,2429.1,0.8189]
[1730746053450,4.22745195,2429.5,2429.3,0.35868668]
[1730746053766,4.22745195,2429.5,2429.4,0.13794507]
[1730746056678,4.22745195,2429.5,2429.4,0.13802888]
[1730746057390,5.13899015,2429.5,2429.4,0.13802888]
[1730746060147,4.11625,2429.4,2429.1,0.2208203]
[1730746060408,4.22741195,2429.5,2429.2,0.35879249]
[1730746060614,0.11116369,2429.3,2429.0,4.11689]
[1730746060800,4.11611,2429.5,2429.1,0.35875606]
[1730746061101,4.11611,2429.5,2429.2,1.17995606]
[1730746061280,4.11592,2429.6,2429.3,0.35875606]
[1730746061590,4.11592,2429.6,2429.4,0.35875606]
[1730746061796,4.11592,2429.6,2429.5,0.13797207]
[1730746062552,5.018557,2429.6,2429.5,0.13797207]
[1730746063769,5.018557,2429.6,2429.2,0.8212]
[1730746063959,4.11624,2429.4,2429.3,0.35880934]
[1730746064486,4.22740369,2429.4,2429.3,0.13799224]
[1730746064679,0.11116369,2429.4,2429.3,0.13799224]
[1730746064884,4.22740369,2429.4,2429.3,0.13799224]
[1730746065696,4.11669,2429.2,2429.0,0.7824]
[1730746065909,4.11669,2429.2,2429.1,0.13804779]
[1730746066502,4.22785369,2429.2,2429.1,0.13804779]
[1730746066703,0.11116369,2429.2,2429.1,0.13804779]
[1730746066994,0.11116369,2429.2,2429.1,0.35891623]
[1730746067206,8.23295,2429.3,2429.1,0.35891623]
[1730746067504,0.11107659,2429.2,2429.1,0.22083063]
[1730746067665,0.11107659,2429.2,2429.1,0.35882766]
[1730746067867,8.23295,2429.3,2429.1,0.35882766]
[1730746068072,4.11642,2429.3,2429.2,0.13799703]
[1730746068896,4.11642,2429.3,2429.2,0.13799766]
[1730746070091,4.11642,2429.3,2429.0,0.7824]
[1730746070295,4.1166,2429.2,2429.1,0.13798025]
[1730746070727,4.11645,2429.3,2429.1,0.13798025]
[1730746071036,4.11645,2429.3,2429.0,0.7824]
[1730746071037,8.23299,2429.3,2429.0,0.7824]
[1730746071331,8.23299,2429.3,2429.1,0.13796684]
[1730746071490,8.23299,2429.3,2429.0,0.7824]
[1730746071702,8.23299,2429.3,2429.1,0.13794935]
[1730746071914,8.23299,2429.3,2429.0,0.7824]
[1730746072108,4.11658,2429.2,2429.1,0.13795853]
[1730746072421,4.11645,2429.3,2429.1,0.13795853]
[1730746072576,4.11658,2429.2,2429.0,0.7824]
[1730746072769,4.11658,2429.2,2429.1,0.1379553]
[1730746074803,4.11658,2429.2,2429.1,0.1379285]
[1730746075858,4.11658,2429.2,2428.8,0.22071509]
[1730746075859,9.3298598,2429.2,2428.9,0.22071509]
[1730746076117,4.11719,2428.9,2428.7,0.22071509]
[1730746076315,4.11725,2428.8,2428.7,0.22071509]
[1730746076519,4.11725,2428.8,2428.7,0.35872201]
[1730746077010,4.11725,2428.8,2428.7,0.13800692]
[1730746077607,5.022644,2428.8,2428.7,0.13800692]
[1730746078311,4.11751,2428.7,2428.5,0.22090206]
[1730746078500,4.11759,2428.6,2428.5,0.22114591]
[1730746078707,4.11759,2428.6,2428.5,0.35936316]
[1730746079018,5.0316394,2428.6,2428.5,0.13821725]
[1730746079233,5.8511394,2428.6,2428.5,0.13821725]
[1730746079730,4.1181,2428.4,2428.2,0.22118367]
[1730746079915,4.1181,2428.4,2428.3,0.35938628]
[1730746080114,4.1181,2428.4,2428.3,0.13820261]
[1730746080313,5.22581407,2428.4,2428.3,0.35938628]
[1730746080647,4.11827,2428.2,2428.1,0.28101087]
[1730746080950,8.58418004,2428.2,2428.1,0.0598272]
[1730746081096,10.66591654,2428.2,2428.1,0.0598272]
[1730746081523,10.66591654,2428.2,2427.3,0.35940868]
[1730746081524,4.11963,2427.4,2427.3,0.35940868]
[1730746081842,4.11963,2427.4,2427.3,0.13807363]
[1730746082046,4.23029146,2427.4,2427.3,0.13807363]
[1730746082186,4.11983,2427.3,2427.1,0.13807363]
[1730746082391,4.11983,2427.3,2427.2,0.13807363]
[1730746082603,4.11983,2427.3,2427.0,0.13807363]
[1730746082604,0.11053837,2427.2,2427.0,0.13807363]
[1730746082813,4.23050837,2427.2,2427.1,0.13807363]
[1730746083001,4.23050837,2427.2,2427.0,0.13807363]
[1730746083202,4.12014,2427.1,2427.0,0.13807363]
[1730746083741,4.12014,2427.1,2426.9,1.11849143]
[1730746083742,0.11045628,2427.1,2426.9,1.11849143]
[1730746083890,4.11973,2427.4,2427.0,0.8288]
[1730746084096,4.11973,2427.4,2427.0,0.96687363]
[1730746084291,0.11045628,2427.3,2427.0,5.08676644]
[1730746084540,4.11952,2427.5,2427.1,0.13768128]
[1730746084736,0.11045372,2427.2,2427.1,0.13768128]
[1730746085037,4.11951,2427.5,2427.1,0.13768128]
[1730746085389,0.11045372,2427.4,2427.1,0.13768128]
[1730746085593,0.11045372,2427.4,2427.0,0.96648128]
[1730746085896,0.11045372,2427.4,2427.0,5.08672128]
[1730746086095,0.11045372,2427.4,2427.0,4.94904]
[1730746086526,0.11045372,2427.4,2427.0,0.8288]
[1730746086741,4.11942,2427.6,2427.1,4.12005]
[1730746086947,0.11047424,2427.3,2427.1,4.12005]
[1730746087142,4.11942,2427.6,2427.1,4.12005]
[1730746087344,0.11047424,2427.2,2427.1,4.12005]
[1730746087658,4.11942,2427.6,2427.1,4.12005]
[1730746087963,4.11942,2427.6,2427.0,0.8288]
[1730746087964,4.11929,2427.6,2427.0,4.9491]
[1730746088130,0.11049989,2427.5,2427.0,0.8288]
[1730746088333,4.23005989,2427.5,2427.0,0.96621806]
[1730746088513,4.23005989,2427.5,2427.0,5.08650806]
[1730746088851,4.11986,2427.3,2427.0,0.8288]
[1730746089153,4.12014,2427.1,2426.9,1.11849143]
[1730746089444,4.23045911,2427.2,2426.9,1.25588521]
[1730746089607,0.11007422,2427.0,2426.9,1.25588521]
[1730746089808,4.11999,2427.2,2426.9,1.25588521]
[1730746090004,0.10640508,2427.0,2426.9,0.19722098]
[1730746090329,0.10640508,2427.0,2426.9,0.0598272]
[1730746090535,4.11982,2427.3,2426.9,0.0598272]
[1730746090732,0.10640508,2427.0,2426.9,0.0598272]
[1730746090949,4.11982,2427.3,2426.9,0.19722098]
[1730746091118,0.10640508,2427.0,2426.9,0.19722098]
[1730746091319,8.23977,2427.3,2426.9,0.19722098]
[1730746091521,0.10640508,2427.2,2427.0,0.8207]
[1730746091738,4.11972,2427.4,2427.0,0.8207]
[1730746092049,0.10641534,2427.1,2427.0,0.95794617]
[1730746092207,4.11972,2427.4,2427.0,0.8207]
[1730746092411,0.10641534,2427.1,2427.0,0.95793033]
[1730746092734,0.10640508,2427.1,2427.0,0.95793033]
[1730746092932,4.11959,2427.5,2427.0,0.95793033]
[1730746093253,4.11959,2427.5,2427.0,5.07813033]
[1730746093254,0.10640508,2427.1,2427.0,5.07813033]
[1730746093404,4.11959,2427.5,2427.0,5.07813033]
[1730746093750,4.11959,2427.5,2427.1,4.12012]
[1730746093951,4.11959,2427.5,2427.0,4.9409]
[1730746094258,4.11959,2427.5,2427.1,4.12013]
[1730746095169,4.11958,2427.5,2427.0,4.94098]
[1730746095467,4.11984,2427.3,2427.0,0.8207]
[1730746095635,4.11965,2427.4,2426.9,0.1971157]
[1730746095636,0.7729,2427.4,2426.9,0.1971157]
[1730746095838,0.7729,2427.4,2426.9,0.0598272]
[1730746095839,4.12031,2427.0,2426.9,0.0598272]
[1730746097165,4.89321,2427.0,2426.9,0.0598272]
[1730746097376,9.47146166,2427.0,2426.9,0.0598272]
[1730746097659,9.47146166,2427.0,2426.0,4.2593278]
[1730746097660,4.12133,2426.4,2426.0,4.2593278]
[1730746097871,4.12133,2426.4,2425.9,0.8181]
[1730746097872,4.12133,2426.4,2426.1,0.1374178]
[1730746098103,0.1062896,2426.3,2426.0,0.1374178]
[1730746098256,4.12133,2426.4,2426.0,4.2594178]
[1730746098461,0.10274661,2426.2,2426.1,0.1374178]
[1730746098681,4.12133,2426.4,2426.1,0.1374178]
[1730746098999,4.12119,2426.5,2426.1,0.1374178]
[1730746099309,0.10268758,2426.3,2426.2,4.12167]
[1730746099515,4.12109,2426.6,2426.2,4.2590878]
[1730746099682,0.10268758,2426.3,2426.2,8.24334]
[1730746100010,0.10268758,2426.3,2426.2,4.25897723]
[1730746100211,4.12102,2426.6,2426.2,4.25897723]
[1730746100424,0.10266961,2426.3,2426.2,4.12167]
[1730746100702,4.12102,2426.6,2426.2,4.25898481]
[1730746101017,4.12097,2426.7,2426.0,4.1219]
[1730746101306,4.12109,2426.6,2426.1,4.2590454]
[1730746101510,4.12117,2426.5,2426.2,0.1372854]
[1730746101690,4.22364457,2426.5,2426.2,0.1372854]
[1730746102285,0.10247457,2426.5,2426.2,4.2588554]
[1730746102486,4.12102,2426.6,2426.1,4.12176]
[1730746102679,4.12102,2426.6,2426.2,0.13737231]
[1730746102884,4.22365457,2426.5,2426.2,0.13737231]
[1730746103135,4.12142,2426.4,2425.9,4.94026]
[1730746103422,4.12142,2426.4,2426.0,0.13735102]
[1730746103423,0.10245917,2426.3,2426.0,0.13735102]
[1730746103625,0.10245917,2426.3,2426.1,0.13741688]
[1730746103784,0.10245917,2426.3,2426.2,0.13741688]
[1730746103982,0.10245917,2426.3,2426.1,0.13741688]
[1730746104182,0.10245917,2426.3,2426.2,0.13741688]
[1730746104383,4.22395917,2426.3,2426.2,0.13741688]
[1730746105185,4.64635509,2426.3,2426.2,0.13741688]
[1730746105392,4.64635509,2426.3,2425.8,0.21989635]
[1730746105393,4.12194,2426.1,2425.8,0.21989635]
[1730746105710,4.12194,2426.1,2425.6,0.8637272]
[1730746105711,4.12201,2426.0,2425.9,0.13766241]
[1730746105913,4.22441268,2426.0,2425.9,0.13766241]
[1730746106584,4.22441268,2426.0,2425.7,0.7641]
[1730746106795,4.22441268,2426.0,2425.8,0.35817729]
[1730746107010,4.22441268,2426.0,2425.9,0.13774918]
[1730746107387,0.10240268,2426.0,2425.9,0.3582912]
[1730746107687,4.64684695,2426.0,2425.9,0.13774918]
[1730746107881,4.12238,2425.8,2425.7,0.22058371]
[1730746108085,4.12238,2425.8,2425.7,0.13785603]
[1730746108306,4.2247005,2425.8,2425.7,0.13785603]
[1730746109529,4.2247005,2425.8,2425.7,0.35855113]
[1730746110231,4.2247005,2425.8,2425.7,0.35858969]
[1730746110385,4.2247005,2425.8,2425.7,0.35849901]
[1730746110587,5.18466198,2425.8,2425.7,0.35849901]
[1730746110785,5.18466198,2425.8,2425.7,0.13790778]
[1730746113639,4.12252,2425.7,2425.6,0.0598272]
[1730746113812,4.12252,2425.7,2425.6,0.19756162]
[1730746113997,4.22451173,2425.7,2425.6,0.19755942]
[1730746114333,4.22451173,2425.7,2425.6,0.41796039]
[1730746114701,4.22451173,2425.7,2425.6,0.19755942]
[1730746115201,0.10199173,2425.7,2425.6,0.19755942]
[1730746115423,5.34443427,2426.0,2425.6,0.41788912]
[1730746115424,9.0441,2426.0,2425.6,0.41788912]
[1730746115699,9.0441,2426.0,2425.7,0.35806192]
[1730746115902,9.04412,2426.0,2425.8,0.13773222]
[1730746116127,9.04412,2426.0,2425.9,0.13773222]
[1730746116439,4.922,2426.0,2425.9,0.13773222]
[1730746116799,4.1221,2426.0,2425.9,0.13773222]
[1730746117792,4.1221,2426.0,2425.9,0.35793032]
[1730746118034,4.1221,2426.0,2425.9,0.13773222]
[1730746118260,4.1221,2426.0,2425.9,0.35796666]
[1730746118459,8.2438,2426.1,2425.9,0.35796666]
[1730746118624,8.2438,2426.1,2426.0,0.13773222]
[1730746120170,9.18846959,2426.1,2426.0,0.13773222]
[1730746120770,4.12168,2426.2,2426.0,0.13773222]
[1730746120965,4.12168,2426.2,2426.1,0.13773222]
[1730746121128,4.12152,2426.3,2426.1,0.13773222]
[1730746121462,4.12152,2426.3,2426.2,0.13769437]
[1730746121828,4.12173,2426.2,2425.9,0.7903]
[1730746122340,4.12152,2426.3,2426.0,0.35802365]
[1730746122732,4.12141,2426.4,2426.0,4.47998365]
[1730746122927,4.12164,2426.3,2426.0,0.35802365]
[1730746123358,4.12164,2426.3,2426.1,0.35802365]
[1730746123662,4.12164,2426.3,2426.2,0.13769009]
[1730746124248,4.12164,2426.3,2426.2,0.3583999]
[1730746124663,4.22364973,2426.3,2426.2,0.3583999]
[1730746125562,4.12169,2426.2,2425.9,0.7903]
[1730746125766,4.12152,2426.3,2425.9,4.91247]
[1730746125931,0.10200973,2426.2,2426.0,4.48092096]
[1730746126129,4.12135,2426.4,2426.1,0.35893096]
[1730746126364,4.22350973,2426.3,2426.2,0.35893096]
[1730746127532,5.1397157,2426.3,2426.2,0.35893096]
[1730746127866,6.4528157,2426.3,2426.2,0.35893096]
[1730746128051,9.4528157,2426.3,2426.2,0.13803903]
[1730746129585,9.4528157,2426.3,2425.6,0.0598272]
[1730746129586,4.12252,2425.7,2425.6,0.0598272]
[1730746129741,4.12252,2425.7,2425.6,0.41930609]
[1730746130265,3.36446235,2425.7,2425.6,0.41930609]
[1730746132149,0.10200973,2425.7,2425.6,0.41930609]
[1730746132487,0.10200973,2425.7,2425.6,0.0598272]
[1730746132488,4.12252,2425.7,2425.6,0.0598272]
[1730746132652,4.22452973,2425.7,2425.6,0.41965466]
[1730746135949,4.22452973,2425.7,2425.6,0.0598272]
[1730746136160,4.22452973,2425.7,2425.6,0.41988324]
[1730746136488,4.22452973,2425.7,2425.6,0.41984986]
[1730746137687,0.10200973,2425.7,2425.6,1.17154986]
[1730746138211,4.12178,2426.2,2425.7,4.12243]
[1730746138354,4.12178,2426.2,2425.8,0.36002266]
[1730746138554,4.12193,2426.1,2425.9,0.35975645]
[1730746138751,8.4431768,2426.4,2425.6,0.8115272]
[1730746139058,8.24416,2426.0,2425.7,0.35956176]
[1730746139253,4.12204,2426.0,2425.8,0.35956176]
[1730746139567,4.12243,2425.8,2425.6,0.0598272]
[1730746139787,0.1018607,2425.7,2425.6,0.0598272]
[1730746139987,4.12243,2425.8,2425.6,1.23338422]
[1730746140170,4.12208,2426.0,2425.7,1.17355702]
[1730746140372,4.12226,2425.9,2425.8,0.35945702]
[1730746141457,8.24419,2426.0,2425.8,0.35945702]
[1730746141667,8.24419,2426.0,2425.9,0.13824132]
[1730746144194,4.12208,2426.0,2425.9,0.13824132]
[1730746146716,4.12201,2426.0,2425.9,0.13824132]
[1730746148334,4.1217,2426.2,2425.9,0.13824132]
[1730746148540,4.12148,2426.4,2426.0,0.7541]
[1730746148743,4.12118,2426.5,2426.1,4.12177]
[1730746148897,4.12118,2426.5,2426.0,4.87602]
[1730746149102,4.12159,2426.3,2426.1,0.13826536]
[1730746149302,4.12167,2426.2,2426.0,0.7541]
[1730746149724,4.12184,2426.1,2426.0,0.7541]
[1730746150040,4.12184,2426.1,2426.0,0.89237621]
[1730746150224,4.12184,2426.1,2426.0,0.13827621]
[1730746151098,8.24343,2426.2,2426.0,0.13827621]
[1730746151317,4.12184,2426.1,2425.7,0.7577]
[1730746151541,4.12212,2426.0,2425.8,0.13822325]
[1730746151695,4.12212,2426.0,2425.9,0.13822325]
[1730746152215,4.12184,2426.1,2425.9,0.13822325]
[1730746152412,4.12184,2426.1,2425.7,4.88007]
[1730746152665,4.12202,2426.0,2425.8,0.13824457]
[1730746152946,4.12202,2426.0,2425.9,0.13824457]
[1730746153099,4.12184,2426.1,2425.7,0.7577]
[1730746153295,4.12184,2426.1,2425.8,0.1382265]
[1730746153539,4.12184,2426.1,2425.9,0.1382265]
[1730746153708,4.1217,2426.2,2425.7,4.88022]
[1730746153914,4.1217,2426.2,2425.8,0.1382514]
[1730746154135,4.122,2426.1,2425.9,0.1382514]
[1730746154327,4.12201,2426.0,2425.8,0.22126737]
[1730746154547,4.12188,2426.1,2425.9,0.13827276]
[1730746154706,0.10200458,2425.9,2425.7,0.7577]
[1730746154910,4.12201,2426.0,2425.6,0.0598272]
[1730746155145,0.10200458,2425.8,2425.7,0.13828268]
[1730746155507,0.8294,2426.0,2425.7,0.35956518]
[1730746155713,0.10200458,2425.9,2425.8,0.13828268]
[1730746156345,0.10200458,2425.9,2425.8,4.26063268]
[1730746157021,4.9511,2426.2,2425.8,4.12235]
[1730746157358,4.12186,2426.1,2425.7,4.1225]
[1730746157555,4.12186,2426.1,2425.8,0.13835168]
[1730746157716,4.12186,2426.1,2425.9,0.13835168]
[1730746158055,4.9511,2426.2,2425.7,4.34394788]
[1730746158252,4.9511,2426.2,2425.8,0.13838933]
[1730746158560,5.12379546,2426.2,2425.9,0.13838933]
[1730746158710,0.8294,2426.2,2425.7,4.12248]
[1730746159057,0.8294,2426.2,2425.9,4.88781]
[1730746159058,1.70904798,2426.2,2425.9,4.88781]
[1730746159855,1.70904798,2426.3,2426.0,4.87539]
[1730746160025,1.54329511,2426.6,2426.0,4.87539]
[1730746160026,1.70904798,2426.5,2426.1,4.12177]
[1730746160552,1.70904798,2426.6,2426.3,4.12149]
[1730746161052,1.70904798,2426.6,2426.4,0.7534]
[1730746161209,1.70904798,2426.7,2426.4,0.7534]
[1730746161613,5.82987798,2426.7,2426.4,0.7534]
[1730746161949,1.70904798,2426.7,2426.4,0.7534]
[1730746162875,1.70904798,2426.7,2426.4,4.87471]
[1730746163391,1.70904798,2426.8,2426.4,4.87471]
[1730746163548,1.70904798,2426.8,2426.4,4.12133]
[1730746163747,1.70904798,2426.9,2426.5,0.8033]
[1730746164057,9.94987798,2427.0,2426.5,0.8033]
[1730746164257,1.70904798,2426.9,2426.5,0.8033]
[1730746164455,5.82943798,2427.0,2426.5,0.8033]
[1730746164889,1.70904798,2427.0,2426.5,4.92439]
[1730746165279,5.82935798,2427.0,2426.5,0.8033]
[1730746165443,4.12031,2427.0,2426.5,0.8033]
[1730746165644,5.82920798,2427.1,2426.5,4.92445]
[1730746165890,5.82920798,2427.1,2426.5,0.8033]
[1730746165891,4.12057,2426.9,2426.5,0.8033]
[1730746168281,7.70153961,2427.0,2426.5,0.8033]
[1730746168496,3.58122961,2427.0,2426.5,4.92444]
[1730746169197,7.70154961,2427.0,2426.5,4.92444]
[1730746169595,0.10217152,2426.9,2426.5,4.92444]
[1730746169912,0.10217152,2426.9,2426.5,0.8033]
[1730746170408,0.10217152,2426.9,2426.5,4.92445]
[1730746173499,0.10217152,2426.9,2426.6,0.7751]
[1730746173942,4.11997,2427.2,2426.6,4.89608]
[1730746174126,0.10217152,2426.8,2426.7,4.92272]
[1730746174611,3.58122961,2427.3,2426.8,4.92246]
[1730746174815,0.1024412,2427.2,2426.9,4.92238]
[1730746175021,4.11948,2427.5,2426.9,4.92238]
[1730746175216,0.1024412,2427.1,2427.0,0.8019]
[1730746175402,4.11948,2427.5,2427.0,0.8019]
[1730746175601,0.1024412,2427.4,2427.0,0.8019]
[1730746175833,0.1024412,2427.4,2427.0,4.92209]
[1730746176040,0.1024412,2427.4,2427.1,4.11998]
[1730746176240,4.11905,2427.8,2427.3,0.7988]
[1730746176808,8.2381,2427.8,2427.4,0.7988]
[1730746177527,4.11905,2427.8,2427.4,0.7988]
[1730746177902,7.70002961,2427.9,2427.4,0.7988]
[1730746178519,4.1192,2427.7,2427.4,0.7988]
[1730746178705,4.11911,2427.8,2427.4,0.7988]
[1730746179228,8.23819,2427.8,2427.4,0.7988]
[1730746179742,4.11908,2427.8,2427.4,0.7988]
[1730746181752,3.58122961,2427.9,2427.4,0.7988]
[1730746181959,7.70002961,2427.9,2427.4,0.7988]
[1730746184525,4.11896,2427.8,2427.4,0.7988]
[1730746184725,4.22151415,2427.8,2427.4,0.7988]
[1730746185063,0.10255415,2427.8,2427.4,0.7988]
[1730746185826,4.22159415,2427.8,2427.4,0.7988]
[1730746186170,4.11916,2427.7,2427.4,0.7988]
[1730746186525,0.10276715,2427.6,2427.4,0.7988]
[1730746191020,1.54153986,2427.5,2427.4,0.7988]